bitfinex/quotes_ETHUSD_20240715
["timestamp","ask_amount","ask_price","bid_price","bid_amount"]
[1721020007528,2.2482,3348.6,3348.0,2.68815]
[1721020007724,2.2482,3348.6,3348.4,0.07551168]
[1721020007963,2.2482,3348.6,3348.1,2.74775011]
[1721020008127,2.2482,3348.6,3348.0,2.68815]
[1721020008128,2.2482,3348.6,3348.5,0.07548886]
[1721020008646,2.2482,3348.6,3348.3,2.68791]
[1721020008829,2.2482,3348.6,3348.4,0.07551168]
[1721020009956,2.2482,3348.6,3348.2,2.68794]
[1721020010163,2.2482,3348.6,3348.5,0.07548886]
[1721020010367,2.2482,3348.6,3348.2,2.68794]
[1721020010573,2.2482,3348.6,3348.5,0.07548886]
[1721020011036,2.2482,3348.6,3348.1,2.68807]
[1721020011238,2.2482,3348.6,3348.2,0.07555733]
[1721020011466,2.2482,3348.6,3348.2,2.76355733]
[1721020011651,2.2482,3348.6,3348.2,0.07555733]
[1721020011975,2.47302,3348.6,3348.2,0.07555733]
[1721020012158,5.16073,3348.6,3347.8,5.68832]
[1721020012333,5.16073,3348.6,3348.3,0.07553451]
[1721020012535,2.3384678,3348.5,3347.8,3.0]
[1721020012755,4.95157,3348.5,3348.4,0.07551168]
[1721020013052,2.2706,3348.4,3347.7,5.68841]
[1721020013477,2.2706,3348.4,3347.8,0.07564863]
[1721020015490,2.2706,3348.3,3347.8,0.07564863]
[1721020015661,2.2706,3348.1,3347.8,0.07564863]
[1721020015862,2.2706,3347.9,3347.3,2.68867]
[1721020016403,2.2706,3347.6,3346.8,2.68907]
[1721020016902,2.34528865,3347.5,3346.6,2.68927]
[1721020017208,2.34528865,3347.5,3346.4,2.68944]
[1721020017209,2.68865,3347.4,3346.4,2.68944]
[1721020017500,2.3351,3347.2,3346.5,2.68937]
[1721020017700,2.3351,3347.2,3346.6,2.68928]
[1721020018467,2.3351,3347.2,3346.7,5.68918]
[1721020018665,2.3351,3347.2,3346.8,2.68912]
[1721020018901,2.365,3348.0,3347.1,2.68889]
[1721020019107,1.0345739,3347.9,3347.2,2.6888]
[1721020019410,2.365,3348.0,3347.6,2.68848]
[1721020020405,2.365,3348.0,3347.7,2.68838]
[1721020021466,2.365,3348.0,3347.8,2.68832]
[1721020022096,2.365,3348.0,3347.9,2.68825]
[1721020022297,2.365,3348.6,3347.9,2.68824]
[1721020022505,2.365,3348.6,3348.2,2.68801]
[1721020023419,2.365,3348.6,3348.0,2.68813]
[1721020023708,2.870245,3348.6,3348.0,2.68813]
[1721020024095,1.03430765,3348.5,3347.3,3.0]
[1721020024278,2.365,3348.6,3348.1,2.68806]
[1721020025503,5.05276,3348.6,3347.7,2.6884]
[1721020025715,1.03432511,3348.5,3348.1,2.68806]
[1721020025868,2.365,3348.6,3348.1,2.68806]
[1721020026070,1.03430678,3348.5,3348.1,2.68806]
[1721020026271,2.365,3348.6,3347.9,2.68818]
[1721020026580,2.4531,3348.4,3347.8,5.68832]
[1721020026784,2.4531,3348.4,3347.8,2.68832]
[1721020026978,2.4531,3348.4,3347.9,5.68818]
[1721020027378,2.4531,3348.4,3348.0,2.68814]
[1721020027582,2.4531,3348.4,3348.1,2.68803]
[1721020030105,2.4531,3348.8,3348.4,2.68779]
[1721020030419,1.0342427,3348.7,3348.4,2.68779]
[1721020030727,1.0342427,3348.6,3348.4,2.68779]
[1721020031034,2.4531,3348.8,3348.5,0.07550228]
[1721020031235,2.4531,3348.8,3348.0,2.68814]
[1721020031236,2.2891,3348.6,3348.0,2.68814]
[1721020031425,2.2891,3348.6,3348.1,0.07559356]
[1721020031626,1.03429158,3348.5,3348.1,0.07559356]
[1721020031837,2.2891,3348.6,3348.1,0.07559356]
[1721020032134,1.03429141,3348.5,3348.1,2.76367356]
[1721020032340,2.2891,3348.6,3348.1,2.76367356]
[1721020032542,2.2891,3348.6,3348.4,2.68784]
[1721020032726,2.2891,3348.6,3348.2,2.68794]
[1721020032946,2.2891,3348.6,3348.5,0.07550228]
[1721020033264,3.32336181,3348.6,3348.5,0.07550228]
[1721020033416,3.32336181,3348.6,3348.2,2.68794]
[1721020033617,2.2891,3348.6,3348.3,0.07554792]
[1721020033849,2.2891,3348.6,3348.2,2.68794]
[1721020034059,2.2891,3348.6,3348.3,0.07554792]
[1721020034222,2.2891,3348.6,3348.2,2.68794]
[1721020034638,1.03427334,3348.5,3348.3,0.07554792]
[1721020034848,2.2891,3348.6,3348.2,2.68794]
[1721020035050,2.2891,3348.6,3348.3,0.07554792]
[1721020035051,1.03427467,3348.5,3348.3,0.07554792]
[1721020035383,1.03431484,3348.4,3348.1,2.68806]
[1721020035556,2.2891,3348.6,3348.1,2.68806]
[1721020035757,1.03429803,3348.5,3348.2,2.68799]
[1721020035975,2.2891,3348.6,3348.2,2.68799]
[1721020036146,1.03428001,3348.5,3348.2,2.68799]
[1721020036891,1.03428001,3348.5,3347.9,5.68822]
[1721020036892,2.2891,3348.6,3348.1,2.68803]
[1721020037184,2.2891,3348.6,3348.2,2.688]
[1721020039789,3.73978475,3348.9,3348.4,2.68778]
[1721020040082,1.35969236,3348.8,3348.5,2.68777]
[1721020040284,1.03419688,3348.7,3348.5,2.68777]
[1721020040488,3.73978475,3348.9,3348.5,2.68777]
[1721020040647,1.35965897,3348.8,3348.5,2.68777]
[1721020040848,1.35965897,3348.7,3348.5,2.68777]
[1721020041044,3.73978475,3348.9,3348.3,2.68792]
[1721020041045,0.32551998,3348.6,3348.3,2.68792]
[1721020041293,1.24948475,3348.8,3348.3,2.68792]
[1721020041444,2.60931388,3348.7,3348.3,2.68792]
[1721020041646,1.35982913,3348.6,3348.4,2.68783]
[1721020041966,0.32556193,3348.5,3348.4,2.68783]
[1721020042166,1.24948475,3348.7,3348.4,2.68783]
[1721020042390,1.35980163,3348.6,3348.4,2.68783]
[1721020042554,1.25281855,3348.7,3348.4,2.68783]
[1721020042761,1.35980078,3348.6,3348.4,2.68783]
[1721020042989,0.32554816,3348.5,3348.4,2.68783]
[1721020043294,1.25281855,3348.8,3348.5,2.68777]
[1721020043608,0.32548952,3348.7,3348.5,2.68777]
[1721020043771,3.74311855,3348.9,3348.5,2.68777]
[1721020044114,2.4903,3348.9,3348.6,2.68768]
[1721020044609,0.32545015,3348.8,3348.6,2.68768]
[1721020045407,2.4903,3348.9,3348.6,2.68768]
[1721020045576,0.32546014,3348.8,3348.5,2.68776]
[1721020045794,0.32546014,3348.8,3348.3,2.68787]
[1721020045993,2.3309,3348.7,3348.6,0.07539733]
[1721020046195,2.3309,3348.7,3348.3,2.68787]
[1721020046394,2.3309,3348.7,3347.9,3.0]
[1721020046395,3.58371855,3348.7,3348.6,0.07539733]
[1721020046708,5.73470462,3348.7,3348.6,0.07539733]
[1721020046910,6.47406229,3348.7,3348.1,2.68806]
[1721020047115,2.61310826,3348.6,3348.1,2.68806]
[1721020047318,1.35977805,3348.5,3347.9,5.68819]
[1721020047645,1.35977805,3348.4,3348.0,2.68812]
[1721020047936,1.25333021,3348.6,3348.0,2.68812]
[1721020048094,1.35988266,3348.5,3348.0,2.68812]
[1721020048415,1.35988266,3348.4,3347.9,3.0]
[1721020048711,1.03428975,3348.3,3348.1,2.68803]
[1721020048878,2.3309,3348.7,3348.2,2.68801]
[1721020049077,1.35971554,3348.6,3348.4,2.68781]
[1721020049312,1.03420847,3348.5,3348.4,2.68781]
[1721020051075,3.56373021,3349.0,3348.5,2.68773]
[1721020051281,1.35961565,3348.9,3348.6,2.68763]
[1721020051488,1.03415744,3348.8,3348.7,2.68759]
[1721020051918,1.03410783,3348.8,3348.7,2.68759]
[1721020052414,1.03411719,3348.8,3348.7,2.68759]
[1721020054127,1.03411719,3348.8,3348.7,5.3752]
[1721020054345,2.3104,3349.3,3348.9,2.68743]
[1721020054632,1.03399747,3349.2,3348.4,2.68779]
[1721020054824,2.3104,3349.3,3349.0,2.68731]
[1721020054825,1.03399747,3349.1,3349.0,2.68731]
[1721020055031,2.3104,3349.3,3349.0,2.68731]
[1721020055227,1.0339939,3349.1,3349.0,2.68731]
[1721020055441,1.03402013,3349.2,3349.1,2.68728]
[1721020055725,0.88402013,3349.2,3349.1,2.68728]
[1721020056029,0.88402013,3349.2,3349.1,5.37456]
[1721020056241,1.25291825,3349.6,3348.9,2.6874]
[1721020056407,1.25291825,3350.0,3349.6,2.68688]
[1721020056594,0.32513365,3349.9,3349.6,2.68688]
[1721020056795,3.73890495,3350.1,3349.6,2.68688]
[1721020056994,3.73890495,3350.1,3349.7,0.07497892]
[1721020056995,1.57802029,3350.0,3349.7,0.07497892]
[1721020057236,2.3696,3349.8,3349.7,0.07497892]
[1721020057541,2.69470204,3349.8,3349.7,0.07493873]
[1721020057842,2.69470204,3349.8,3349.0,5.68735]
[1721020058041,0.32510204,3349.7,3349.0,5.68735]
[1721020058244,0.32510204,3349.7,3349.1,0.07507558]
[1721020058443,0.66342303,3349.7,3349.1,0.07507558]
[1721020058600,2.3696,3349.5,3349.1,0.07507558]
[1721020058793,2.3696,3349.5,3348.7,2.68758]
[1721020058794,0.0746495,3349.4,3348.7,2.68758]
[1721020059022,0.0746495,3349.4,3349.2,0.07504774]
[1721020059023,0.32534809,3349.4,3349.2,0.07504774]
[1721020059219,0.32534809,3349.4,3348.7,2.68758]
[1721020059532,2.44425054,3349.3,3348.8,0.07513899]
[1721020059740,0.32534809,3349.2,3348.4,2.68783]
[1721020059896,2.3696,3349.1,3348.9,0.07511618]
[1721020060096,0.32548367,3349.0,3348.4,2.68783]
[1721020060300,2.3696,3349.1,3348.4,2.68783]
[1721020060643,0.40013785,3349.0,3348.5,0.07520745]
[1721020060811,2.3696,3349.1,3348.5,0.07520745]
[1721020061012,0.3254781,3349.0,3348.4,2.68783]
[1721020061210,2.3696,3349.1,3348.6,0.07518463]
[1721020061520,3.83188556,3349.1,3348.7,0.07516181]
[1721020061750,2.3021,3348.8,3348.7,0.07516181]
[1721020061927,2.3021,3348.6,3347.7,2.68841]
[1721020062265,2.3021,3348.6,3347.9,2.68822]
[1721020062614,2.3021,3348.6,3348.0,2.68815]
[1721020063154,2.3021,3348.6,3348.1,2.68807]
[1721020063748,2.3021,3348.6,3348.0,2.68815]
[1721020063935,3.08266121,3348.6,3347.6,3.0]
[1721020064147,5.77040121,3348.6,3347.6,3.0]
[1721020064321,2.3021,3348.6,3347.8,2.68827]
[1721020064538,1.25158314,3348.5,3347.9,5.68823]
[1721020064848,1.25158314,3348.5,3347.9,3.0]
[1721020065060,1.25158314,3348.5,3347.7,3.0]
[1721020065239,3.93935314,3348.5,3347.7,3.0]
[1721020065621,2.3021,3348.3,3347.7,3.0]
[1721020065939,4.99004,3348.3,3347.5,0.31259609]
[1721020066138,2.28597616,3348.2,3347.5,0.31259609]
[1721020066342,1.03439302,3348.1,3347.3,3.0]
[1721020066711,2.4685,3348.0,3347.4,2.68865]
[1721020066956,2.4685,3348.0,3347.5,3.0]
[1721020067527,1.03448121,3347.9,3347.3,2.68871]
[1721020067741,1.25158314,3348.1,3347.7,2.68834]
[1721020067960,3.72008314,3348.4,3347.9,2.68818]
[1721020068116,4.56723436,3348.9,3348.0,2.68816]
[1721020068117,3.72008314,3348.7,3348.0,2.68816]
[1721020068464,2.4685,3348.7,3348.1,2.68802]
[1721020068819,2.4685,3348.7,3348.2,0.07520888]
[1721020069340,2.4685,3348.7,3348.3,2.68792]
[1721020069543,3.72008314,3349.0,3348.5,2.68774]
[1721020069863,2.4685,3349.0,3348.7,2.68757]
[1721020070245,3.72008314,3349.4,3348.9,2.68744]
[1721020070474,2.4685,3349.4,3349.1,2.68726]
[1721020070981,2.4685,3349.4,3349.2,0.07498071]
[1721020071464,3.6595969,3349.7,3349.2,0.07498071]
[1721020071666,1.03396233,3349.6,3349.2,0.07498071]
[1721020071849,3.6595969,3349.7,3348.9,2.6874]
[1721020072027,1.2526969,3349.5,3348.9,2.6874]
[1721020072365,1.03401954,3349.4,3349.0,0.07502633]
[1721020072527,1.2526969,3349.5,3348.7,2.68759]
[1721020072528,2.4069,3349.5,3348.7,2.68759]
[1721020072728,2.4069,3349.5,3349.1,0.07492649]
[1721020072998,2.4069,3349.5,3348.8,3.0]
[1721020073277,5.03332,3349.3,3349.2,0.07490368]
[1721020073457,2.3462,3349.3,3348.5,3.0]
[1721020073770,2.3462,3349.3,3348.7,2.68759]
[1721020073972,2.3462,3349.3,3348.8,3.0]
[1721020074153,2.3462,3349.3,3348.8,3.07499493]
[1721020074851,3.5886969,3349.7,3349.1,2.68727]
[1721020075081,1.03394636,3349.6,3349.2,2.6872]
[1721020075364,1.2526969,3350.0,3349.5,2.68696]
[1721020075573,1.03385847,3349.9,3349.5,2.68696]
[1721020075725,3.7050836,3350.1,3349.6,0.07481245]
[1721020076070,1.03386451,3350.0,3349.6,0.07481245]
[1721020076361,4.57540959,3350.1,3349.6,0.07481245]
[1721020076665,1.03388626,3350.0,3349.3,2.68712]
[1721020076888,1.03384797,3349.9,3349.7,0.07478964]
[1721020077099,0.97866279,3349.9,3349.2,2.68715]
[1721020077257,7.18726632,3350.1,3349.8,0.07476684]
[1721020077258,3.7050836,3350.1,3349.8,0.07476684]
[1721020077459,2.4523867,3350.1,3349.3,2.68708]
[1721020077657,2.4523867,3350.1,3349.9,0.07465364]
[1721020077999,2.4523867,3350.1,3349.3,2.68708]
[1721020078288,3.79504671,3350.0,3349.2,2.68718]
[1721020078600,2.3593,3349.8,3349.2,2.68718]
[1721020078754,2.3593,3349.8,3349.0,2.68731]
[1721020078954,0.07463755,3349.7,3349.1,3.0]
[1721020079192,2.68681,3349.7,3349.1,3.0]
[1721020079394,2.3593,3349.8,3349.2,2.68719]
[1721020079693,2.3593,3349.8,3349.0,3.0]
[1721020079872,2.3593,3349.8,3349.0,2.6873]
[1721020080076,5.04608,3349.8,3349.1,3.0]
[1721020080281,5.04608,3349.8,3349.1,2.68728]
[1721020080457,5.04608,3349.8,3349.3,2.68706]
[1721020080458,2.3593,3349.8,3349.3,2.68706]
[1721020080795,2.3593,3349.8,3349.5,2.68692]
[1721020081395,0.1163867,3350.1,3349.3,2.68706]
[1721020081396,2.4614867,3350.1,3349.4,2.68698]
[1721020081592,1.03386708,3350.0,3349.5,2.68695]
[1721020081753,2.4614867,3350.1,3349.6,2.68687]
[1721020081956,2.4614867,3350.1,3350.0,5.37312]
[1721020081957,0.1163867,3350.1,3350.0,5.37312]
[1721020082202,0.1163867,3350.1,3350.0,5.43281183]
[1721020082404,0.1163867,3350.1,3350.0,5.37312]
[1721020083360,0.1163867,3350.1,3350.0,8.37312]
[1721020083576,0.1163867,3350.1,3350.0,13.48998]
[1721020083786,0.1163867,3350.1,3350.0,16.67498]
[1721020083985,0.1163867,3350.1,3350.0,19.36154]
[1721020084258,1e-08,3350.1,3350.0,25.3461]
[1721020084508,2.386,3352.3,3351.7,2.68517]
[1721020084687,4.24779476,3352.5,3351.5,2.2649]
[1721020084688,1.25114829,3352.5,3351.5,2.2649]
[1721020084998,2.2937,3353.2,3351.9,2.68504]
[1721020084999,2.68417,3353.0,3351.9,2.68504]
[1721020085202,4.52071823,3353.4,3352.4,2.2649]
[1721020085423,0.02821128,3354.3,3352.4,2.2649]
[1721020085424,0.02821128,3354.3,3353.6,5.36736]
[1721020085590,0.49851616,3353.7,3352.6,2.353]
[1721020085900,0.44851616,3353.7,3353.4,2.6838]
[1721020086065,0.44851616,3353.7,3353.6,2.68368]
[1721020086256,0.44851616,3353.7,3353.6,8.36736]
[1721020086696,0.44851616,3353.7,3353.6,5.68368]
[1721020086893,0.44851616,3353.7,3353.6,3.0]
[1721020087096,0.44851616,3353.7,3352.8,2.68425]
[1721020087315,0.44851616,3353.7,3352.0,2.68496]
[1721020087475,0.44851616,3353.7,3351.6,3.487]
[1721020087476,2.68384,3353.4,3351.6,3.487]
[1721020087823,2.68384,3353.4,3351.1,2.68567]
[1721020087824,2.68464,3352.4,3351.1,2.68567]
[1721020087965,2.68481,3352.2,3351.0,2.68569]
[1721020088165,2.68438,3352.8,3350.7,3.487]
[1721020088462,2.68438,3352.8,3350.5,0.05967375]
[1721020088463,5.13787,3353.3,3351.6,2.68527]
[1721020088661,5.13787,3353.3,3350.5,4.18611]
[1721020088662,2.68448,3352.6,3350.7,3.487]
[1721020088969,2.68456,3352.5,3351.5,2.68531]
[1721020089162,2.68433,3352.8,3351.8,2.68511]
[1721020089403,0.513787,3353.2,3352.1,2.68487]
[1721020089404,2.68418,3353.0,3352.1,2.68487]
[1721020089898,2.68425,3352.9,3351.8,2.6851]
[1721020090195,2.68425,3352.9,3351.2,3.487]
[1721020090196,0.268425,3352.8,3351.9,2.7460746]
[1721020090498,0.513787,3353.2,3352.3,2.68471]
[1721020090683,5.13782,3353.3,3352.3,2.68471]
[1721020090888,5.13782,3353.3,3352.4,0.06091745]
[1721020091086,2.75856878,3353.2,3352.4,0.06091745]
[1721020091312,2.4539,3353.3,3352.4,0.06091745]
[1721020091313,2.68456,3352.5,3352.4,0.06091745]
[1721020091514,2.68456,3352.5,3351.4,2.68537]
[1721020091660,2.68456,3352.5,3351.5,2.68536]
[1721020091878,2.68456,3352.5,3351.5,0.06107415]
[1721020092121,2.68435,3352.8,3351.5,0.06107415]
[1721020092273,0.31251187,3352.9,3351.0,10.0357]
[1721020092477,2.68472,3352.3,3351.6,0.06105636]
[1721020092673,5.10181,3352.2,3351.2,2.68556]
[1721020093318,2.68497,3352.0,3351.3,0.0611247]
[1721020093612,2.75963708,3351.9,3350.5,2.68613]
[1721020093811,2.75963708,3351.9,3351.4,0.06110192]
[1721020094024,0.57596371,3351.8,3349.5,13.83616591]
[1721020094178,2.68584,3351.0,3349.7,2.68674]
[1721020094512,2.76047964,3350.9,3349.8,2.6867]
[1721020094686,2.68592,3350.8,3349.8,0.05778591]
[1721020094893,0.07462749,3350.7,3349.8,0.05778591]
[1721020095217,2.68616,3350.5,3349.1,2.68728]
[1721020095427,3.2786692,3350.4,3349.9,0.05776311]
[1721020095590,3.2786692,3350.4,3349.2,2.6872]
[1721020095785,2.68649,3350.1,3350.0,0.05774031]
[1721020095980,2.68649,3350.1,3349.2,2.6872]
[1721020096181,0.0746373,3350.0,3348.1,2.68804]
[1721020096379,2.417,3349.7,3348.4,2.68777]
[1721020096607,2.68706,3349.4,3348.4,2.68777]
[1721020097007,0.07465519,3349.3,3348.4,2.68777]
[1721020097382,2.68688,3349.6,3348.4,2.68777]
[1721020097383,0.07465517,3349.5,3348.4,2.68777]
[1721020098288,12.1155,3350.9,3348.3,2.3589]
[1721020098536,12.1155,3350.9,3348.7,2.68757]
[1721020098817,2.68616,3350.5,3349.3,2.6871]
[1721020099011,2.68616,3350.5,3349.4,2.68704]
[1721020099233,1.21155,3350.8,3349.0,3.0]
[1721020099234,2.68659,3350.0,3349.0,3.0]
[1721020099394,2.3155,3349.9,3349.0,3.0]
[1721020099581,2.3155,3349.9,3349.0,5.68734]
[1721020100631,2.3155,3349.9,3348.5,0.31238572]
[1721020100632,3.084349,3349.9,3348.5,3.00014572]
[1721020100920,2.68719,3349.3,3348.3,2.68792]
[1721020101108,2.68699,3349.5,3348.4,2.6878]
[1721020101285,2.68699,3349.5,3348.6,2.68768]
[1721020101481,2.68679,3349.8,3348.8,2.68752]
[1721020102122,2.3155,3349.9,3348.9,2.68743]
[1721020102335,2.3155,3349.9,3349.0,2.68734]
[1721020102536,2.3155,3349.9,3349.5,2.68695]
[1721020102818,2.68617,3350.5,3349.4,2.68701]
[1721020103241,2.68626,3350.4,3349.2,2.6872]
[1721020103440,2.68626,3350.4,3349.5,2.68696]
[1721020103739,2.474,3350.7,3350.1,2.68646]
[1721020103894,2.68545,3351.4,3350.4,2.6862]
[1721020104101,0.268545,3351.3,3350.4,2.6862]
[1721020104407,0.268545,3351.3,3349.8,2.68671]
[1721020104408,2.686,3350.7,3349.8,2.68671]
[1721020104594,0.268545,3351.3,3349.9,0.11454372]
[1721020104794,2.474,3351.7,3350.4,2.68621]
[1721020104795,2.68562,3351.2,3350.4,2.68621]
[1721020104993,2.68562,3351.2,3350.5,0.05470514]
[1721020105334,2.68562,3351.2,3350.3,2.68632]
[1721020105833,2.68562,3351.2,3350.4,0.05472793]
[1721020106440,2.68569,3351.1,3350.4,0.05472793]
[1721020106591,2.68569,3351.1,3349.9,2.68664]
[1721020106592,0.537131,3351.0,3349.9,2.68664]
[1721020106812,2.68585,3350.9,3350.0,0.05473745]
[1721020107850,2.68627,3350.4,3350.0,0.05473745]
[1721020108147,2.68639,3350.3,3350.0,0.05473745]
[1721020108316,2.68639,3350.3,3349.4,3.0]
[1721020108504,0.36562225,3350.2,3350.1,0.05471465]
[1721020108707,0.36562225,3350.2,3349.4,5.68704]
[1721020108909,2.68609,3350.6,3350.1,0.05471465]
[1721020109146,2.68609,3350.6,3349.4,5.68704]
[1721020109351,2.2921,3350.9,3350.2,0.05469186]
[1721020109352,2.68625,3350.4,3350.2,0.05469186]
[1721020109551,2.68625,3350.4,3349.5,2.68696]
[1721020109842,2.68673,3349.8,3349.6,0.05482866]
[1721020110056,2.2921,3350.2,3349.2,2.68717]
[1721020110261,2.68673,3349.8,3348.8,2.68752]
[1721020110413,2.68694,3349.6,3349.3,0.05489708]
[1721020110607,2.68694,3349.6,3348.6,2.68762]
[1721020110835,3.224345,3349.5,3348.7,2.74263396]
[1721020111005,2.2921,3349.3,3348.7,0.05503396]
[1721020111211,2.2921,3349.3,3348.4,0.31251936]
[1721020111212,2.68743,3349.0,3348.4,0.31251936]
[1721020111447,2.68743,3349.0,3347.8,2.68829]
[1721020111448,2.68745,3348.9,3348.5,0.05507959]
[1721020111816,2.68755,3348.8,3347.8,2.68829]
[1721020112156,2.68791,3348.4,3347.9,0.05521653]
[1721020112653,2.68791,3348.4,3347.4,2.68859]
[1721020112654,2.68763,3348.7,3347.8,2.68827]
[1721020112946,2.68763,3348.7,3348.0,0.05519371]
[1721020113142,2.68763,3348.7,3347.9,0.05521653]
[1721020113519,2.68763,3348.7,3348.1,0.05517088]
[1721020113853,3.2788794,3348.7,3348.2,0.05514806]
[1721020114008,0.5912494,3348.7,3348.2,0.05514806]
[1721020114213,2.68731,3349.1,3348.0,2.68814]
[1721020114445,2.68737,3349.0,3348.1,0.05517088]
[1721020114760,2.68737,3349.0,3348.1,2.74325088]
[1721020115047,0.537468,3348.9,3348.1,0.05517088]
[1721020115263,2.68778,3348.5,3347.4,3.00107871]
[1721020115415,2.68793,3348.3,3348.2,0.05514806]
[1721020115731,2.68793,3348.3,3347.4,3.00107871]
[1721020115732,2.68801,3348.2,3347.4,3.00107871]
[1721020115933,2.68801,3348.2,3347.4,0.31244871]
[1721020116140,2.68801,3348.2,3347.5,0.05530786]
[1721020116322,2.68825,3347.9,3347.5,0.05530786]
[1721020116715,2.68825,3347.9,3346.8,2.68913]
[1721020116716,2.68825,3347.9,3347.1,2.68889]
[1721020116918,2.68801,3348.2,3347.6,0.05528502]
[1721020117145,2.68822,3348.0,3347.1,2.68889]
[1721020117351,2.68825,3347.9,3347.7,0.05526219]
[1721020117614,2.68825,3347.9,3346.6,7.35]
[1721020117615,2.68843,3347.7,3346.7,2.68918]
[1721020117932,2.68843,3347.7,3346.4,2.68945]
[1721020117933,2.68859,3347.5,3346.4,2.68945]
[1721020118170,2.68859,3347.5,3346.6,2.68928]
[1721020118323,2.68859,3347.5,3346.4,2.68945]
[1721020118324,0.537702,3347.5,3346.5,2.68934]
[1721020118526,0.5908041,3348.2,3346.5,2.74912061]
[1721020118527,2.68834,3347.8,3346.5,2.74912061]
[1721020118742,0.5908041,3348.2,3346.6,0.31252204]
[1721020119063,2.68833,3347.8,3346.9,2.68903]
[1721020119225,2.68821,3348.0,3347.0,2.68889]
[1721020119546,2.68858,3347.5,3346.6,0.31252204]
[1721020119757,2.68847,3347.7,3346.9,2.689]
[1721020120056,2.68847,3347.7,3346.6,0.05975661]
[1721020120057,2.68865,3347.4,3346.6,0.31250456]
[1721020120261,2.68857,3347.6,3346.6,3.0]
[1721020120563,2.4085,3347.5,3346.4,3.0]
[1721020120863,2.68891,3347.1,3346.5,0.05457529]
[1721020121150,2.4085,3346.9,3346.5,0.05457529]
[1721020121310,2.68935,3346.6,3345.7,2.68997]
[1721020121714,2.4085,3346.9,3345.8,0.05473526]
[1721020121715,2.68945,3346.4,3345.8,0.05473526]
[1721020121923,2.68951,3346.4,3345.8,0.05473526]
[1721020122127,2.68951,3346.4,3345.5,2.69013]
[1721020122315,2.68951,3346.4,3345.9,0.0547124]
[1721020122546,2.68953,3346.3,3345.5,2.69013]
[1721020122747,2.68953,3346.3,3346.0,0.05468955]
[1721020122910,2.68953,3346.3,3345.1,2.69048]
[1721020122911,2.68979,3346.0,3345.1,2.69048]
[1721020123114,0.537891,3346.3,3345.1,2.69048]
[1721020123115,2.68962,3346.2,3345.3,2.69029]
[1721020123321,2.6895,3346.4,3345.3,2.69029]
[1721020123557,2.68946,3346.4,3345.5,2.69016]
[1721020123914,2.68954,3346.3,3345.5,2.69016]
[1721020124154,2.68942,3346.5,3345.5,2.69016]
[1721020124312,2.68923,3346.7,3345.6,2.74985761]
[1721020124514,0.54107471,3346.7,3345.3,0.05977169]
[1721020124715,2.68914,3346.8,3345.7,2.69001]
[1721020124949,2.4085,3346.9,3345.9,2.6898]
[1721020125260,2.68948,3346.4,3345.5,5.38022]
[1721020125573,5.4085,3346.9,3345.6,2.69008]
[1721020125574,2.68931,3346.6,3345.6,2.69008]
[1721020125724,5.4085,3346.9,3345.9,2.68985]
[1721020126134,5.09757,3346.9,3346.0,2.6897]
[1721020126451,2.68873,3347.3,3346.3,2.68947]
[1721020126617,2.68888,3347.2,3346.1,3.0]
[1721020126817,5.09715,3347.4,3346.1,3.0]
[1721020127030,2.6889,3347.1,3346.3,2.68952]
[1721020127262,2.6889,3347.1,3346.1,5.68967]
[1721020127569,2.68922,3346.7,3346.1,3.0]
[1721020127852,2.68922,3346.7,3345.9,3.0]
[1721020128416,2.6893,3346.6,3345.8,3.0]
[1721020128759,2.68938,3346.5,3345.6,5.69004]
[1721020128917,2.6893,3346.6,3345.7,2.68999]
[1721020129113,0.778615,3347.1,3345.7,2.68999]
[1721020129114,2.68911,3346.9,3345.9,2.68978]
[1721020129614,2.68946,3346.4,3345.6,3.0]
[1721020129918,5.09796,3346.4,3345.6,3.0]
[1721020130118,2.68974,3346.1,3345.6,3.0]
[1721020130353,2.68974,3346.1,3345.0,2.69056]
[1721020130552,2.6898,3346.0,3345.2,2.6904]
[1721020131245,2.68994,3345.8,3345.1,0.31210427]
[1721020131553,2.68994,3345.8,3345.0,2.69056]
[1721020132250,2.68994,3345.8,3345.1,3.0]
[1721020132828,2.68974,3346.1,3345.2,2.6904]
[1721020133040,2.4085,3346.4,3345.3,3.05977986]
[1721020133244,2.4085,3346.4,3345.6,2.69009]
[1721020133752,2.68954,3346.3,3345.7,0.05518227]
[1721020134117,2.68979,3346.0,3345.1,6.0024692]
[1721020134320,2.68979,3346.0,3345.8,0.05515941]
[1721020134550,2.68953,3346.3,3345.3,3.0]
[1721020134758,5.37912,3346.3,3345.9,0.05513656]
[1721020134961,5.37912,3346.3,3345.3,2.69032]
[1721020134962,2.68978,3346.0,3345.3,2.69032]
[1721020135125,2.68978,3346.0,3345.4,3.0]
[1721020135328,2.68978,3346.0,3345.4,3.05525085]
[1721020135664,2.68978,3346.0,3345.4,0.05525085]
[1721020135960,2.68978,3346.0,3345.2,3.0]
[1721020136257,2.4085,3346.4,3345.2,3.0]
[1721020136258,2.68976,3346.1,3345.2,5.6904]
[1721020136460,2.68976,3346.1,3345.3,0.05523695]
[1721020136751,2.68978,3346.0,3345.3,0.05523695]
[1721020136967,2.68986,3345.9,3345.3,0.05523695]
[1721020137665,2.68986,3345.9,3345.4,0.05521409]
[1721020137836,2.68986,3345.9,3345.1,6.0024292]
[1721020138189,2.68994,3345.8,3345.2,0.05525982]
[1721020139143,3.228032,3345.7,3345.2,0.05525982]
[1721020139463,2.69006,3345.7,3344.8,2.69068]
[1721020139664,2.6901,3345.6,3344.9,0.05544535]
[1721020140709,2.68994,3345.8,3344.9,2.74609535]
[1721020140885,5.09802,3346.4,3345.3,2.69033]
[1721020141174,2.6897,3346.1,3345.3,2.69033]
[1721020141344,2.4085,3346.4,3345.4,2.69018]
[1721020141544,2.68929,3346.6,3345.7,2.68995]
[1721020141851,3.0359125,3346.8,3345.7,2.68995]